bitfinex-derivatives/quotes_BTCF0:USTF0_20250709
["timestamp","ask_amount","ask_price","bid_price","bid_amount"]
[1752060771482,1.19520924,109160.0,109150.0,0.56090516]
[1752060771688,0.57316924,109160.0,109150.0,0.56090516]
[1752060772295,1.19520924,109160.0,109150.0,0.56090516]
[1752060772501,1.19520924,109160.0,109150.0,0.31128216]
[1752060772691,1.19520924,109160.0,109150.0,0.56090516]
[1752060773990,0.69596324,109160.0,109150.0,0.550163]
[1752060774195,1.19520924,109160.0,109150.0,0.31128226]
[1752060776991,0.69596324,109160.0,109150.0,0.30054]
[1752060777290,1.19520924,109160.0,109150.0,0.30054]
[1752060777503,1.19520924,109160.0,109150.0,0.550163]
[1752060777691,0.69596324,109160.0,109150.0,0.30054]
[1752060777994,1.19520924,109160.0,109150.0,0.30054]
[1752060778199,0.69596324,109160.0,109150.0,0.30054]
[1752060778502,1.19520924,109160.0,109150.0,0.30054]
[1752060781301,0.69596324,109160.0,109150.0,0.30054]
[1752060781600,1.19520924,109160.0,109150.0,0.30054]
[1752060781901,1.19520924,109160.0,109150.0,0.550163]
[1752060782101,1.19520924,109160.0,109150.0,0.30054]
[1752060785007,0.69596324,109160.0,109150.0,0.30054]
[1752060785403,1.19520924,109160.0,109150.0,0.30054]
[1752060787511,0.57316924,109160.0,109150.0,0.31128226]
[1752060787808,1.19588924,109160.0,109150.0,0.31128226]
[1752060791411,0.69664324,109160.0,109150.0,0.31128226]
[1752060791612,1.19588924,109160.0,109150.0,0.31128226]
[1752060792012,0.69664324,109160.0,109150.0,0.31128226]
[1752060792213,1.19588924,109160.0,109150.0,0.31128226]
[1752060792400,0.69664324,109160.0,109150.0,0.31128226]
[1752060792607,1.19588924,109160.0,109150.0,0.31128226]
[1752060794410,0.69656324,109160.0,109150.0,0.31128226]
[1752060794714,1.19580924,109160.0,109150.0,0.56090526]
[1752060795105,0.69656324,109160.0,109150.0,0.56090526]
[1752060795304,1.19580924,109160.0,109150.0,0.56090526]
[1752060796517,1.19580924,109160.0,109150.0,0.31128226]
[1752060796718,1.19580924,109160.0,109150.0,0.56090526]
[1752060797720,1.16295064,109160.0,109150.0,0.56090526]
[1752060797917,1.19607063,109160.0,109150.0,0.56090526]
[1752060798420,1.19607063,109160.0,109150.0,0.31128226]
[1752060799017,1.19607063,109160.0,109150.0,0.56090526]
[1752060800609,1.19607063,109160.0,109150.0,0.31128226]
[1752060800809,1.19607063,109160.0,109150.0,0.56090526]
[1752060801220,1.19607063,109160.0,109150.0,0.31128226]
[1752060801411,1.19607063,109160.0,109150.0,0.56090526]
[1752060803020,1.19607063,109160.0,109150.0,0.550163]
[1752060803219,1.19607063,109160.0,109150.0,0.56090526]
[1752060803518,1.19726722,109160.0,109150.0,0.56090526]
[1752060803909,1.19726722,109160.0,109150.0,0.31128226]
[1752060804213,1.19726722,109160.0,109150.0,0.56090526]
[1752060805214,1.19726722,109160.0,109150.0,0.31128226]
[1752060805614,1.19726722,109160.0,109150.0,0.56090526]
[1752060806510,1.19726722,109160.0,109150.0,0.31128226]
[1752060807119,1.19726722,109160.0,109150.0,0.56090526]
[1752060807915,1.27975501,109160.0,109150.0,0.31128226]
[1752060808220,1.27975501,109160.0,109150.0,0.56261526]
[1752060809211,1.27975247,109160.0,109150.0,0.56261526]
[1752060813129,1.27975247,109160.0,109150.0,0.31299226]
[1752060814618,1.27959247,109160.0,109150.0,0.31299226]
[1752060817532,1.27959247,109160.0,109150.0,0.30225]
[1752060817919,1.19710468,109160.0,109150.0,0.30225]
[1752060818729,1.19710468,109160.0,109150.0,0.30225]
[1752060819025,1.19710468,109160.0,109150.0,0.31299217]
[1752060822426,1.19710468,109160.0,109150.0,0.28863217]
[1752060822730,1.19710468,109160.0,109150.0,0.25763217]
[1752060822731,1.26160468,109160.0,109150.0,0.25763217]
[1752060825430,1.26160468,109160.0,109150.0,0.29013217]
[1752060828032,0.76235868,109160.0,109150.0,0.29013217]
[1752060828232,1.26160468,109160.0,109150.0,0.29013217]
[1752060831033,1.26160468,109160.0,109150.0,0.53975517]
[1752060832344,1.26160468,109160.0,109150.0,0.27427217]
[1752060832545,1.26160468,109160.0,109150.0,0.24177217]
[1752060833450,0.63792468,109160.0,109150.0,0.24177217]
[1752060833648,1.26432468,109160.0,109150.0,0.24177217]
[1752060837146,1.62512468,109160.0,109150.0,0.24177217]
[1752060839055,1.62512468,109160.0,109150.0,0.27367217]
[1752060839552,1.62512468,109160.0,109150.0,0.26293]
[1752060839757,1.26432468,109160.0,109150.0,0.2890424]
[1752060847258,1.23282468,109160.0,109150.0,0.2890424]
[1752060847960,1.31531247,109160.0,109150.0,0.2890424]
[1752060848150,1.67611247,109160.0,109150.0,0.2890424]
[1752060850455,1.67611247,109160.0,109150.0,0.2417724]
[1752060850652,1.70881247,109160.0,109150.0,0.2114724]
[1752060856462,1.70881247,109160.0,109150.0,0.21147249]
[1752060857365,1.70881247,109160.0,109150.0,0.20073]
[1752060858069,1.62632468,109160.0,109150.0,0.20073]
[1752060858662,1.70881247,109160.0,109150.0,0.2114725]
[1752060859566,1.70881247,109160.0,109150.0,0.20073]
[1752060859966,1.62632468,109160.0,109150.0,0.20073]
[1752060860768,1.62632468,109160.0,109150.0,0.2114725]
[1752060863657,1.62632468,109160.0,109150.0,0.2762725]
[1752060865668,1.62632468,109160.0,109150.0,0.26553]
[1752060865869,1.62632468,109160.0,109150.0,0.2762724]
[1752060866367,1.62628523,109160.0,109150.0,0.2762724]
[1752060867870,1.62628523,109160.0,109150.0,0.26553]
[1752060868469,1.12703923,109160.0,109150.0,0.26553]
[1752060868676,1.62628523,109160.0,109150.0,0.26553]
[1752060873478,1.62660523,109160.0,109150.0,0.26553]
[1752060874280,1.70909302,109160.0,109150.0,0.26553]
[1752060888489,1.70909302,109160.0,109150.0,0.27627251]
[1752060889686,1.70909302,109160.0,109150.0,0.21147251]
[1752060894892,1.20984702,109160.0,109150.0,0.21147251]
[1752060895083,1.70909302,109160.0,109150.0,0.21147251]
[1752060895391,1.70909302,109160.0,109150.0,0.24347269]
[1752060895583,1.70909302,109160.0,109150.0,0.27387269]
[1752060896312,1.67639302,109160.0,109150.0,0.27387269]
[1752060897894,1.67639302,109160.0,109150.0,0.26313]
[1752060898089,1.17714702,109160.0,109150.0,0.27849]
[1752060898285,1.67639302,109160.0,109150.0,0.27849]
[1752060898993,1.64339302,109160.0,109150.0,0.27849]
[1752060901290,1.01667302,109160.0,109150.0,0.27849]
[1752060901495,1.64279302,109160.0,109150.0,0.27849]
[1752060901888,1.64275302,109160.0,109150.0,0.27849]
[1752060902495,1.56026523,109160.0,109150.0,0.27849]
[1752060903195,1.64275625,109160.0,109150.0,0.27849]
[1752060904395,1.01667625,109160.0,109150.0,0.27849]
[1752060904590,1.64267625,109160.0,109150.0,0.30243]
[1752060904890,1.64267625,109160.0,109150.0,0.66243]
[1752060905096,1.64267625,109160.0,109150.0,0.30243]
[1752060905796,1.64267625,109160.0,109150.0,0.31317249]
[1752060905997,1.01667625,109160.0,109150.0,0.31317249]
[1752060906198,1.64271625,109160.0,109150.0,0.31317249]
[1752060906395,1.01667625,109160.0,109150.0,0.31317249]
[1752060906697,1.64279625,109160.0,109150.0,0.31317249]
[1752060907101,1.64279625,109160.0,109150.0,0.30243]
[1752060907996,1.64279625,109160.0,109150.0,0.31317249]
[1752060910496,1.01667625,109160.0,109150.0,0.31317249]
[1752060910696,1.64267625,109160.0,109150.0,0.31317249]
[1752060912800,1.28187625,109160.0,109150.0,0.31317249]
[1752060913002,1.64267625,109160.0,109150.0,0.31317249]
[1752060913702,1.28187625,109160.0,109150.0,0.31317249]
[1752060913903,1.64267625,109160.0,109150.0,0.31317249]
[1752060918308,0.40625325,109160.0,109150.0,0.56279549]
[1752060918495,0.94940223,109160.0,109150.0,0.92279549]
[1752060918696,0.94940223,109160.0,109150.0,0.56279549]
[1752060919101,0.94940223,109160.0,109150.0,0.89279549]
[1752060919610,0.94944223,109160.0,109150.0,0.89279549]
[1752060920208,0.32376223,109160.0,109150.0,0.89279549]
[1752060920409,0.94932223,109160.0,109150.0,0.89279549]
[1752060920611,0.94932223,109160.0,109150.0,0.89279507]
[1752060922510,0.32376223,109160.0,109150.0,0.89279507]
[1752060922711,0.94932223,109160.0,109150.0,0.89279507]
[1752060923714,0.94932223,109160.0,109150.0,1.25359501]
[1752060924011,0.94932223,109160.0,109150.0,0.89279501]
[1752060925207,0.94932223,109160.0,109150.0,1.25359501]
[1752060925505,0.32376223,109160.0,109150.0,1.25359501]
[1752060925712,0.94908223,109160.0,109150.0,1.25359501]
[1752060929417,0.94908223,109160.0,109150.0,1.253595]
[1752060932314,0.94908223,109160.0,109150.0,1.242853]
[1752060932518,0.94908223,109160.0,109150.0,1.253595]
[1752060936022,1.19870523,109160.0,109150.0,1.253595]
[1752060938023,1.19870523,109160.0,109150.0,1.242853]
[1752060938219,1.28119625,109160.0,109150.0,1.242853]
[1752060942623,0.78195025,109160.0,109150.0,0.95393]
[1752060942921,1.03157325,109160.0,109150.0,1.243103]
[1752060944724,1.28119625,109160.0,109150.0,1.243103]
[1752060946122,1.28119625,109160.0,109150.0,1.203553]
[1752060946325,1.28119625,109160.0,109150.0,1.228043]
[1752060947223,1.03157325,109160.0,109150.0,1.23878499]
[1752060948122,0.94908223,109160.0,109150.0,1.23878499]
[1752060948816,0.94908223,109160.0,109150.0,0.98916199]
[1752060949024,0.94908223,109160.0,109150.0,1.25384499]
[1752060950826,0.94908223,109160.0,109150.0,0.89304499]
[1752060951024,0.94908223,109160.0,109150.0,1.25384499]
[1752060951523,1.19870523,109160.0,109150.0,1.25384499]
[1752060954621,0.69945923,109160.0,109150.0,1.25384499]
[1752060954818,0.94908223,109160.0,109150.0,1.25384499]
[1752060956126,0.94908223,109160.0,109150.0,0.89304499]
[1752060956330,0.94908223,109160.0,109150.0,1.25384499]
[1752060957128,0.94908223,109160.0,109150.0,1.00422199]
[1752060957319,0.94908223,109160.0,109150.0,1.25384499]
[1752060957918,0.32376223,109160.0,109150.0,1.25384499]
[1752060958118,0.94772223,109160.0,109150.0,1.25384499]
[1752060958427,0.32376223,109160.0,109150.0,1.25384499]
[1752060958629,0.94772223,109160.0,109150.0,1.25384499]
[1752060959127,0.32376223,109160.0,109150.0,1.25384499]
[1752060959321,0.94764223,109160.0,109150.0,1.25384499]
[1752060959528,0.32376223,109160.0,109150.0,1.25384499]
[1752060960522,0.94760223,109160.0,109150.0,1.25384499]
[1752060963735,0.32376223,109160.0,109150.0,1.25384499]
[1752060963933,0.94752223,109160.0,109150.0,1.25384499]
[1752060968838,0.94752223,109160.0,109150.0,0.89304499]
[1752060969041,0.94752223,109160.0,109150.0,1.25384499]
[1752060972742,0.94752223,109160.0,109150.0,1.00422199]
[1752060972939,0.94752223,109160.0,109150.0,1.25384499]
[1752060975650,0.94752223,109160.0,109150.0,0.89304499]
[1752060975950,0.94752223,109160.0,109150.0,1.25384499]
[1752060977549,0.94752223,109160.0,109150.0,0.89304499]
[1752060977848,0.94752223,109160.0,109150.0,1.25384499]
[1752060978452,0.94720223,109160.0,109150.0,1.25384499]
[1752060980054,0.94720223,109160.0,109150.0,0.89304499]
[1752060980255,0.94720223,109160.0,109150.0,1.00422199]
[1752060980459,0.94720223,109160.0,109150.0,1.25384499]
[1752060980960,0.94720223,109160.0,109150.0,1.243103]
[1752060981150,0.94720223,109160.0,109150.0,1.25384498]
[1752060983462,0.94720223,109160.0,109150.0,1.00422198]
[1752060983662,0.94720223,109160.0,109150.0,1.25384498]
[1752060986464,0.94716223,109160.0,109150.0,1.25384498]
[1752060987968,0.94716223,109160.0,109150.0,1.243103]
[1752060988162,0.78003025,109160.0,109150.0,1.226793]
[1752060988464,1.02965325,109160.0,109150.0,1.226793]
[1752060991670,1.02965325,109160.0,109150.0,1.203553]
[1752060991969,1.02965325,109160.0,109150.0,1.226793]
[1752060992771,0.99657866,109160.0,109150.0,1.226793]
[1752060993071,1.02969279,109160.0,109150.0,1.226793]
[1752060993969,1.02969279,109160.0,109150.0,1.23753496]
[1752060996376,1.02969279,109160.0,109150.0,0.98791196]
[1752060996676,1.02969279,109160.0,109150.0,1.25328496]
[1752060998079,0.32380177,109160.0,109150.0,1.25328496]
[1752060998268,0.94720177,109160.0,109150.0,1.25328496]
[1752061001675,0.32380177,109160.0,109150.0,1.25328491]
[1752061001870,0.94720177,109160.0,109150.0,1.25328491]
[1752061002679,0.94720177,109160.0,109150.0,1.00366191]
[1752061002878,0.94720177,109160.0,109150.0,1.25328491]
[1752061007486,0.32380177,109160.0,109150.0,1.25328491]
[1752061007681,0.94732177,109160.0,109150.0,1.25328491]
[1752061013282,0.69769877,109160.0,109150.0,1.242543]
[1752061013487,0.94732177,109160.0,109150.0,1.25328491]
[1752061014488,0.94732177,109160.0,109150.0,0.89248491]
[1752061014689,0.94732177,109160.0,109150.0,1.25328491]
[1752061016487,0.94732177,109160.0,109150.0,0.89248491]
[1752061017488,0.94732177,109160.0,109150.0,1.25328491]
[1752061017992,0.69769877,109160.0,109150.0,1.25328491]
[1752061018184,0.94732177,109160.0,109150.0,1.25328491]
[1752061021692,0.69769877,109160.0,109150.0,1.25328491]
[1752061021888,0.94732177,109160.0,109150.0,1.25328491]
[1752061025399,0.94720177,109160.0,109150.0,1.25328491]
[1752061027899,0.94720177,109160.0,109150.0,1.242543]
[1752061028200,1.02969279,109160.0,109150.0,1.242543]
[1752061035207,0.99657866,109160.0,109150.0,1.242543]
[1752061035411,1.02974226,109160.0,109150.0,1.242543]
[1752061038107,0.94725124,109160.0,109150.0,1.242543]
[1752061039915,0.94725124,109160.0,109150.0,0.99292]
[1752061040116,0.94725124,109160.0,109150.0,1.242543]
[1752061042018,0.69762824,109160.0,109150.0,1.242543]
[1752061042222,0.94725124,109160.0,109150.0,1.242543]
[1752061043221,0.32385124,109160.0,109150.0,1.242543]
[1752061043521,0.07422824,109160.0,109150.0,1.242543]
[1752061043718,0.69758824,109160.0,109150.0,1.242543]
[1752061043920,0.69758824,109160.0,109150.0,0.99292]
[1752061044220,0.69758824,109160.0,109150.0,1.242543]
[1752061044826,0.69558824,109160.0,109150.0,1.244543]
[1752061049226,0.69555745,109160.0,109150.0,1.244543]
[1752061055032,0.94518045,109160.0,109150.0,1.244543]
[1752061061036,0.69555745,109160.0,109150.0,1.244543]
[1752061061228,0.94518045,109160.0,109150.0,1.244543]
[1752061067938,0.94518045,109160.0,109150.0,0.99492]
[1752061068133,0.94518045,109160.0,109150.0,1.244543]
[1752061070533,0.94511963,109160.0,109150.0,1.244543]
[1752061074941,0.69549663,109160.0,109150.0,1.244543]
[1752061075141,0.94511963,109160.0,109150.0,1.244543]
[1752061077242,0.69549663,109160.0,109150.0,1.244543]
[1752061077543,0.94511963,109160.0,109150.0,1.205553]
[1752061078744,0.69549663,109160.0,109150.0,1.205553]
[1752061079943,0.94511963,109160.0,109150.0,1.205553]
[1752061080541,0.94511963,109160.0,109150.0,0.844753]
[1752061080845,0.94511963,109160.0,109150.0,1.205553]
[1752061081044,0.69549663,109160.0,109150.0,1.205553]
[1752061081548,0.69549663,109160.0,109150.0,0.844753]
[1752061081748,0.69549663,109160.0,109150.0,1.205553]
[1752061089252,0.6954342,109160.0,109150.0,1.205553]
[1752061089753,0.6952342,109160.0,109150.0,1.205553]
[1752061094953,0.6952342,109160.0,109150.0,0.95593]
[1752061095153,0.6952342,109160.0,109150.0,1.205553]
[1752061099961,0.0720742,109160.0,109150.0,1.205553]
[1752061100154,0.6951942,109160.0,109150.0,1.28770819]
[1752061100358,0.6951942,109160.0,109150.0,1.205553]
[1752061103163,0.69518661,109160.0,109150.0,1.205553]
[1752061107070,0.69518661,109160.0,109150.0,0.95593]
[1752061107269,0.69518661,109160.0,109150.0,1.205553]
[1752061108373,0.69518027,109160.0,109150.0,1.205553]
[1752061108970,0.69518008,109160.0,109150.0,1.205553]
[1752061110476,0.69518008,109160.0,109150.0,0.95593]
[1752061110676,0.69518008,109160.0,109150.0,1.205553]
[1752061114483,0.69518008,109160.0,109150.0,0.844753]
[1752061114683,0.69518008,109160.0,109150.0,1.205553]
[1752061116885,0.94480308,109160.0,109150.0,1.173553]
[1752061117085,1.25852608,109160.0,109150.0,1.143153]
[1752061117287,1.00890308,109160.0,109150.0,1.143153]
[1752061125186,1.00890308,109160.0,109150.0,1.175753]
[1752061126290,1.00890308,109160.0,109150.0,1.207353]
[1752061128286,0.75928008,109160.0,109150.0,1.207353]
[1752061128491,1.00890308,109160.0,109150.0,1.207353]
[1752061129092,0.75928008,109160.0,109150.0,1.207353]
[1752061129392,1.00890308,109160.0,109150.0,1.207353]
[1752061129793,0.69502008,109160.0,109150.0,1.207353]
[1752061130986,0.07206008,109160.0,109150.0,1.456976]
[1752061131188,0.62296,109160.0,109150.0,1.59386477]
[1752061132295,0.62296,109160.0,109150.0,1.51170958]
[1752061132791,0.04829924,109170.0,109150.0,1.87250958]
[1752061132991,0.04829924,109170.0,109160.0,0.922846]
[1752061133193,0.67125924,109170.0,109160.0,1.292846]
[1752061133795,0.04829924,109170.0,109160.0,1.292846]
[1752061133996,0.67125924,109170.0,109160.0,1.292846]
[1752061135097,0.67225924,109170.0,109160.0,1.292846]
[1752061135298,0.04929924,109170.0,109160.0,1.493576]
[1752061135599,0.67225924,109170.0,109160.0,1.493576]
[1752061136098,0.67325924,109170.0,109160.0,1.493576]
[1752061136900,0.67325924,109170.0,109160.0,1.54830958]
[1752061137196,0.67321924,109170.0,109160.0,1.54830958]
[1752061138292,0.67321924,109170.0,109160.0,1.493576]
[1752061140598,0.05029924,109170.0,109160.0,1.493576]
[1752061141000,0.67321924,109170.0,109160.0,1.493576]
[1752061142596,0.67321924,109170.0,109160.0,0.99433]
[1752061142790,0.67321924,109170.0,109160.0,1.493576]
[1752061142996,1.85529624,109170.0,109160.0,0.20073]
[1752061143190,0.0049,109160.0,109140.0,0.08215519]
[1752061143492,0.7216,109150.0,109130.0,0.00013758]
[1752061143799,0.3608,109140.0,109130.0,0.04116661]
[1752061144003,0.860046,109140.0,109130.0,0.07206661]
[1752061144300,0.3608,109140.0,109130.0,0.07205615]
[1752061144508,0.860046,109140.0,109130.0,0.07205615]
[1752061145203,0.860046,109140.0,109130.0,0.03103758]
[1752061145204,0.99327692,109140.0,109130.0,0.03103758]
[1752061145390,1.09327692,109140.0,109130.0,0.03103758]
[1752061145998,1.74963692,109140.0,109130.0,0.03103758]
[1752061146396,1.77563692,109140.0,109130.0,0.23176758]
[1752061146604,1.77663692,109140.0,109130.0,0.23176758]
[1752061147502,1.6941459,109140.0,109130.0,0.23176758]
[1752061148498,1.77642454,109140.0,109130.0,0.23176758]
[1752061148697,1.80412963,109140.0,109130.0,0.23176758]
[1752061149500,1.81321608,109140.0,109130.0,0.23176758]
[1752061150004,1.81320272,109140.0,109130.0,0.23176758]
[1752061150405,1.81320272,109140.0,109130.0,0.24577084]
[1752061151105,2.06282572,109140.0,109130.0,0.01847245]
[1752061151303,2.24608172,109140.0,109130.0,0.01846718]
[1752061151605,2.06282572,109140.0,109130.0,0.00446919]
[1752061151809,2.24608172,109140.0,109130.0,0.00446919]
[1752061152613,2.06282572,109140.0,109130.0,0.00446919]
[1752061153914,1.31395672,109140.0,109130.0,0.00446919]
[1752061154113,1.81320272,109140.0,109130.0,0.00446919]
[1752061154313,2.06282572,109140.0,109130.0,0.00446919]
[1752061154710,2.60037243,109140.0,109130.0,0.00446919]
[1752061156613,2.41711643,109140.0,109130.0,0.00446919]
[1752061156914,2.60821243,109140.0,109130.0,0.00446919]
[1752061157513,2.60745243,109140.0,109130.0,0.00446919]
[1752061158713,2.60717243,109140.0,109130.0,0.00446919]
[1752061158911,1.69441135,109140.0,109130.0,0.00446919]
[1752061159111,2.35757135,109140.0,109130.0,0.00446919]
[1752061159613,2.35725135,109140.0,109130.0,0.00446919]
[1752061160320,1.67605725,109140.0,109130.0,0.00446919]
[1752061160507,2.44823199,109140.0,109130.0,0.00446919]
[1752061160710,2.35660236,109140.0,109130.0,0.00446919]
[1752061161315,2.10660236,109140.0,109130.0,0.00446919]
[1752061162922,2.10596236,109140.0,109130.0,0.00446919]
[1752061163919,2.00596236,109140.0,109130.0,0.00446919]
[1752061164420,2.00596236,109140.0,109130.0,0.01879757]
[1752061164718,2.10596236,109140.0,109130.0,0.00446919]
[1752061165119,1.99662762,109140.0,109130.0,0.00446919]
[1752061166217,1.99662762,109140.0,109120.0,0.0631]
[1752061166409,0.71980167,109130.0,109120.0,0.07742865]
[1752061166721,0.77052821,109130.0,109120.0,0.07742865]
[1752061166921,0.6611605,109130.0,109120.0,0.0631]
[1752061167323,0.6611605,109130.0,109120.0,0.07742866]
[1752061167622,0.79864016,109130.0,109120.0,0.07742866]
[1752061168022,0.6611605,109130.0,109120.0,0.0631]
[1752061168216,0.79864016,109130.0,109120.0,0.0631]
[1752061168722,0.79864016,109130.0,109110.0,0.00183293]
[1752061168918,1.27055396,109120.0,109110.0,0.01616159]
[1752061169121,1.3212805,109120.0,109110.0,0.01616159]
[1752061169522,1.45876016,109120.0,109110.0,0.01616159]
[1752061170220,1.2091262,109120.0,109110.0,0.01616159]
[1752061170425,1.45876016,109120.0,109110.0,0.21689159]
[1752061170722,1.53038327,109120.0,109110.0,0.21689159]
[1752061172124,1.53038327,109120.0,109110.0,0.21789159]
[1752061172419,1.53038327,109120.0,109110.0,0.21889159]
[1752061172624,1.53038327,109120.0,109110.0,0.28269159]
[1752061173328,1.53038327,109120.0,109110.0,0.26836293]
[1752061175224,1.47522473,109120.0,109110.0,0.26836293]
[1752061176619,1.47522473,109120.0,109110.0,0.28249196]
[1752061178325,1.39290361,109120.0,109110.0,0.28249196]
[1752061178926,1.89227806,109120.0,109110.0,0.28249196]
[1752061179127,1.99227806,109120.0,109110.0,0.28249196]
[1752061179322,2.13809918,109120.0,109110.0,0.21869196]
[1752061179521,2.13809918,109120.0,109110.0,0.20456293]
[1752061180033,2.05577806,109120.0,109110.0,0.20456293]
[1752061180430,2.13822915,109120.0,109110.0,0.20456293]
[1752061181036,2.05577806,109120.0,109110.0,0.20456293]
[1752061181429,2.13822611,109120.0,109110.0,0.20456293]
[1752061181733,2.13822611,109120.0,109110.0,0.21880046]
[1752061182332,2.22987253,109120.0,109110.0,0.21880046]
[1752061182533,2.32958265,109120.0,109110.0,0.21880046]
[1752061182740,0.8697277,109120.0,109110.0,0.21880046]
[1752061182927,2.27697611,109120.0,109110.0,0.21880046]
[1752061186131,2.27657611,109120.0,109110.0,0.28380046]
[1752061186337,2.27657611,109120.0,109110.0,0.25060046]
[1752061186727,2.27657611,109120.0,109110.0,0.25060737]
[1752061186931,2.27601611,109120.0,109110.0,0.25060737]
[1752061187442,2.27601611,109120.0,109110.0,0.21880737]
[1752061187843,2.27601611,109120.0,109110.0,0.20456293]
[1752061188241,2.19356806,109120.0,109110.0,0.20456293]
[1752061188837,2.27594958,109120.0,109110.0,0.20456293]
[1752061189237,2.27594958,109120.0,109110.0,0.20356293]
[1752061189238,2.27794958,109120.0,109110.0,0.20356293]
[1752061189438,2.27794958,109120.0,109110.0,0.20256293]
[1752061189640,2.28094958,109120.0,109110.0,0.20256293]
[1752061191545,2.46424558,109120.0,109110.0,0.20256293]
[1752061194639,2.28094958,109120.0,109110.0,0.20256293]
[1752061198147,1.62366958,109120.0,109110.0,0.20256293]
[1752061198348,2.27786958,109120.0,109110.0,0.20256293]
[1752061198550,2.65597399,109120.0,109080.0,0.00183343]
[1752061198754,0.86013894,109090.0,109080.0,0.06333343]
[1752061198940,1.51457894,109090.0,109080.0,0.06333343]
[1752061199141,1.59695109,109090.0,109080.0,0.06333343]
[1752061199450,1.51457894,109090.0,109080.0,0.06333343]
[1752061199841,1.51457894,109090.0,109080.0,0.06433343]
[1752061200242,1.59695109,109090.0,109080.0,0.06533343]
[1752061200850,1.34743779,109090.0,109080.0,0.06433343]
[1752061201055,1.59926343,109090.0,109080.0,0.06433343]
[1752061201246,1.69926343,109090.0,109080.0,0.001]
[1752061201448,1.95738387,109090.0,109070.0,0.0018336]
[1752061201651,0.92195128,109080.0,109070.0,0.0018336]
[1752061201848,1.02195128,109080.0,109070.0,0.0018336]
[1752061202048,1.10432343,109080.0,109040.0,0.45495048]
[1752061202249,0.61062564,109050.0,109040.0,0.03940179]
[1752061202443,1.52455486,109050.0,109040.0,0.03940179]
[1752061202644,1.26562564,109050.0,109040.0,0.03940179]
[1752061203051,1.33851225,109050.0,109040.0,0.03940179]
[1752061203455,0.32271225,109050.0,109040.0,0.39940179]
[1752061203753,0.97763225,109050.0,109040.0,0.24913179]
[1752061204254,0.97763225,109050.0,109040.0,0.23156411]
[1752061204454,0.97763225,109050.0,109040.0,0.29466411]
[1752061205252,0.97763225,109050.0,109040.0,0.3356583]
[1752061205651,0.97763225,109050.0,109040.0,0.6456583]
[1752061205853,0.97763225,109050.0,109040.0,0.3356583]
[1752061207150,0.72780661,109050.0,109040.0,0.3356583]
[1752061207350,0.97763225,109050.0,109040.0,0.3356583]
[1752061207751,1.33843225,109050.0,109040.0,0.3356583]
[1752061208153,1.08860661,109050.0,109040.0,0.3356583]
[1752061208454,1.33843225,109050.0,109040.0,0.3356583]
[1752061210355,1.08860661,109050.0,109040.0,0.3356583]
[1752061210557,1.33843225,109050.0,109040.0,0.3356583]
[1752061211061,1.33815225,109050.0,109040.0,0.3356583]
[1752061218155,1.58797789,109050.0,109040.0,0.3356583]
[1752061218565,1.58797789,109050.0,109040.0,0.3156583]
[1752061218866,1.58797789,109050.0,109040.0,0.27466411]
[1752061219658,1.65267789,109050.0,109040.0,0.27466411]
[1752061220768,1.65267789,109050.0,109040.0,0.21156411]
[1752061221866,1.65267789,109050.0,109040.0,0.20656411]
[1752061222166,1.65267789,109050.0,109040.0,0.20856411]
[1752061222358,1.84438314,109050.0,109040.0,0.20856411]
[1752061222562,1.74438314,109050.0,109040.0,0.20456411]
[1752061222769,1.74438314,109050.0,109040.0,0.20556411]
[1752061223569,1.65227789,109050.0,109040.0,0.20556411]
[1752061226976,1.75227789,109050.0,109040.0,0.20556411]
[1752061227580,1.84398314,109050.0,109040.0,0.20556411]
[1752061234684,2.19561259,109050.0,109030.0,0.00183427]
[1752061234886,1.02495128,109040.0,109030.0,0.00183427]
[1752061235578,1.30008894,109040.0,109010.0,0.10209311]
[1752061235779,0.86045128,109020.0,109010.0,0.04743419]
[1752061236277,0.86045128,109020.0,109010.0,0.07893419]
[1752061236579,0.86045128,109020.0,109010.0,0.11143419]
[1752061236882,0.86045128,109020.0,109010.0,0.11643419]
[1752061237486,0.86045128,109020.0,109010.0,0.11943419]
[1752061237687,0.3608,109020.0,109010.0,0.32016419]
[1752061237886,0.86045128,109020.0,109010.0,0.32016419]
[1752061238280,0.3608,109020.0,109010.0,0.32016419]
[1752061238583,0.3608,109020.0,109010.0,0.31916419]
[1752061238584,1.26302564,109020.0,109010.0,0.31916419]
[1752061240088,1.26302564,109020.0,109010.0,0.27817]
[1752061241178,1.51285128,109020.0,109010.0,0.27817]
[1752061241680,1.26302564,109020.0,109010.0,0.27817]
[1752061242086,1.51285128,109020.0,109010.0,0.27817]
[1752061243090,1.26302564,109020.0,109010.0,0.27817]
[1752061245291,1.01272,109020.0,109010.0,0.27817]
[1752061245487,0.24982564,109020.0,109010.0,0.27817]
[1752061245692,0.652,109020.0,109010.0,1.23978983]
[1752061245990,0.61062564,109040.0,109010.0,1.67325383]
[1752061246286,0.61062564,109040.0,109020.0,0.67082564]
[1752061246287,0.65236,109030.0,109020.0,0.67082564]
[1752061246592,0.65236,109030.0,109020.0,1.04082564]
[1752061246784,0.65236,109030.0,109020.0,0.791]
[1752061246980,0.90218564,109030.0,109020.0,0.791]
[1752061247390,0.90218564,109030.0,109020.0,0.421]
[1752061247693,0.90218564,109030.0,109020.0,0.731]
[1752061248191,0.65236,109030.0,109020.0,0.77199419]
[1752061248395,1.26304322,109040.0,109020.0,0.77199419]
[1752061248584,1.26304322,109040.0,109030.0,0.0602]
[1752061248779,0.90168322,109040.0,109030.0,0.771]
[1752061249196,0.90160322,109040.0,109030.0,0.771]
[1752061249395,0.90160322,109040.0,109030.0,0.81199419]
[1752061249894,0.90160322,109040.0,109030.0,0.81299419]
[1752061250094,0.24996322,109040.0,109030.0,0.81299419]
[1752061250295,0.90128322,109040.0,109030.0,1.01372419]
[1752061253598,0.24996322,109040.0,109030.0,1.01372419]
[1752061253792,0.90072322,109040.0,109030.0,1.01372419]
[1752061257196,0.65089758,109040.0,109030.0,1.01372419]
[1752061257396,0.90072322,109040.0,109030.0,1.01372419]
[1752061258198,0.90072322,109040.0,109030.0,0.97273]
[1752061258601,0.90072322,109040.0,109030.0,0.61193]
[1752061259795,0.65089758,109040.0,109030.0,0.61193]
[1752061260095,0.90072322,109040.0,109030.0,0.26193]
[1752061260295,0.24996322,109040.0,109030.0,0.26193]
[1752061260491,0.00013758,109040.0,109030.0,1.89143564]
[1752061260697,0.00013758,109040.0,109030.0,1.93242983]
[1752061261097,0.00013758,109040.0,109030.0,1.68260419]
[1752061261296,0.00013758,109040.0,109030.0,1.73726311]
[1752061261496,0.00013758,109040.0,109030.0,1.93242983]
[1752061261901,0.00013758,109040.0,109030.0,1.68260419]
[1752061262301,0.00013758,109040.0,109030.0,1.93242983]
[1752061265507,0.00013758,109040.0,109030.0,1.68260419]
[1752061265705,0.00013758,109040.0,109030.0,1.93242983]
[1752061266208,0.00013758,109040.0,109030.0,1.68260419]